fUST/lending_fUST_20240918
["ID","MTS","AMOUNT","RATE_DAILY","PERIOD"]
[338435625,1726637440574,-174.24022888,0.00019178,2]
[338435626,1726637440583,-500.0,0.00019178,2]
[338435627,1726637440593,-2097.29,0.00019178,2]
[338435628,1726637440602,-500.0,0.00019178,2]
[338435629,1726637440613,-500.0,0.00019178,2]
[338435630,1726637440624,-568.12,0.00019178,2]
[338435631,1726637440634,-500.0,0.00019178,2]
[338435632,1726637440646,-890.17,0.00019178,2]
[338435633,1726637440656,-500.0,0.00019178,2]
[338435634,1726637440669,-500.0,0.00019178,2]
[338435635,1726637440680,-500.0,0.00019178,2]
[338435636,1726637440691,-500.0,0.00019178,2]
[338435637,1726637440702,-500.0,0.00019178,2]
[338435638,1726637440713,-500.0,0.00019178,2]
[338435639,1726637440724,-500.0,0.00019178,2]
[338435640,1726637440735,-500.0,0.00019178,2]
[338435641,1726637440748,-500.0,0.00019178,2]
[338435642,1726637440758,-500.0,0.00019178,2]
[338435643,1726637440769,-500.0,0.00019178,2]
[338435644,1726637440779,-500.0,0.00019178,2]
[338435645,1726637440789,-596.58861169,0.00019178,2]
[338435646,1726637440800,-2033.2,0.00019178,2]
[338435647,1726637440811,-500.0,0.00019178,2]
[338435648,1726637440822,-500.0,0.00019178,2]
[338435649,1726637440833,-500.0,0.00019178,2]
[338435650,1726637440844,-782.0,0.00019178,2]
[338435651,1726637440855,-1454.93,0.00019178,2]
[338435652,1726637440865,-500.0,0.00019178,2]
[338435653,1726637440874,-500.0,0.00019178,2]
[338435654,1726637440883,-500.0,0.00019178,2]
[338435655,1726637440893,-500.0,0.00019178,2]
[338435656,1726637440902,-1206.65,0.00019178,2]
[338435657,1726637440912,-500.0,0.00019178,2]
[338435658,1726637440921,-500.0,0.00019178,2]
[338435659,1726637440932,-788.05,0.00019178,2]
[338435660,1726637440943,-500.0,0.00019178,2]
[338435661,1726637440953,-500.0,0.00019178,2]
[338435662,1726637440964,-2529.1,0.00019178,2]
[338435663,1726637440974,-500.0,0.00019178,2]
[338435664,1726637440983,-1427.66,0.00019178,2]
[338435665,1726637440994,-500.0,0.00019178,2]
[338435666,1726637441004,-2622.57,0.00019178,2]
[338435667,1726637441015,-500.0,0.00019178,2]
[338435668,1726637441024,-622.45,0.00019178,2]
[338435669,1726637441033,-569.39,0.00019178,2]
[338435670,1726637441043,-500.0,0.00019178,2]
[338435671,1726637441053,-500.0,0.00019178,2]
[338435672,1726637441062,-507.97,0.00019178,2]
[338435673,1726637441071,-520.74405636,0.00019178,2]
[338435674,1726637441081,-500.0,0.00019178,2]
[338435675,1726637441091,-500.0,0.00019178,2]
[338435676,1726637441101,-500.0,0.00019178,2]
[338435677,1726637441110,-744.06,0.00019178,2]
[338435678,1726637441120,-500.0,0.00019178,2]
[338435679,1726637441129,-703.2,0.00019178,2]
[338435680,1726637441138,-500.0,0.00019178,2]
[338435681,1726637441148,-500.0,0.00019178,2]
[338435682,1726637441158,-647.37,0.00019178,2]
[338435683,1726637441168,-1746.98,0.00019178,2]
[338435684,1726637441177,-1206.93,0.00019178,2]
[338435685,1726637441187,-500.0,0.00019178,2]
[338435686,1726637441196,-500.0,0.00019178,2]
[338435687,1726637441206,-500.0,0.00019178,2]
[338435688,1726637441215,-500.0,0.00019178,2]
[338435689,1726637441224,-501.35,0.00019178,2]
[338435690,1726637441234,-500.0,0.00019178,2]
[338435691,1726637441244,-528.41126972,0.00019178,2]
[338435692,1726637441253,-500.0,0.00019178,2]
[338435693,1726637441263,-500.0,0.00019178,2]
[338435694,1726637441273,-944.56,0.00019178,2]
[338435695,1726637441282,-500.0,0.00019178,2]
[338435696,1726637441292,-500.0,0.00019178,2]
[338435697,1726637441301,-555.36,0.00019178,2]
[338435698,1726637441311,-500.0,0.00019178,2]
[338435699,1726637441320,-500.0,0.00019178,2]
[338435700,1726637441329,-500.0,0.00019178,2]
[338435701,1726637441339,-1054.0,0.00019178,2]
[338435702,1726637441348,-650.5,0.00019178,2]
[338435703,1726637441357,-500.0,0.00019178,2]
[338435704,1726637441367,-500.0,0.00019178,2]
[338435705,1726637441376,-500.0,0.00019178,2]
[338435706,1726637441386,-500.0,0.00019178,2]
[338435707,1726637441395,-500.0,0.00019178,2]
[338435708,1726637441405,-500.0,0.00019178,2]
[338435709,1726637441414,-500.0,0.00019178,2]
[338435710,1726637441424,-500.0,0.00019178,2]
[338435711,1726637441433,-500.0,0.00019178,2]
[338435712,1726637441443,-1018.24,0.00019178,2]
[338435713,1726637441452,-500.0,0.00019178,2]
[338435714,1726637441461,-500.0,0.00019178,2]
[338435715,1726637441470,-500.0,0.00019178,2]
[338435716,1726637441479,-500.0,0.00019178,2]
[338435717,1726637441489,-500.0,0.00019178,2]
[338435718,1726637441499,-500.0,0.00019178,2]
[338435719,1726637441509,-500.0,0.00019178,2]
[338435720,1726637441518,-500.0,0.00019178,2]
[338435721,1726637441527,-500.0,0.00019178,2]
[338435722,1726637441536,-621.74,0.00019178,2]
[338435723,1726637441546,-500.0,0.00019178,2]
[338435724,1726637441556,-500.0,0.00019178,2]
[338435725,1726637441565,-500.0,0.00019178,2]
[338435726,1726637441575,-500.0,0.00019178,2]
[338435727,1726637441584,-500.0,0.00019178,2]
[338435728,1726637441594,-500.0,0.00019178,2]
[338435729,1726637441604,-500.0,0.00019178,2]
[338435730,1726637441613,-182.41536857,0.00019178,2]
[338435731,1726637441623,-500.0,0.00019178,2]
[338435732,1726637441632,-551.4,0.00019178,2]
[338435733,1726637441642,-500.0,0.00019178,2]
[338435734,1726637441651,-500.0,0.00019178,2]
[338435735,1726637441660,-1243.87,0.00019178,2]
[338435736,1726637441671,-1095.69,0.00019178,2]
[338435737,1726637441682,-500.0,0.00019178,2]
[338435738,1726637441693,-500.0,0.00019178,2]
[338435739,1726637441703,-500.0,0.00019178,2]
[338435740,1726637441713,-500.0,0.00019178,2]
[338435741,1726637441723,-500.73140609,0.00019178,2]
[338435742,1726637441734,-500.0,0.00019178,2]
[338435743,1726637441746,-163.61183862,0.00019178,2]
[338435744,1726637441756,-507.54994266,0.00019178,2]
[338435745,1726637441769,-500.0,0.00019178,2]
[338435746,1726637441780,-500.0,0.00019178,2]
[338435747,1726637441793,-1319.81,0.00019178,2]
[338435748,1726637441804,-500.71233452,0.00019178,2]
[338435749,1726637441813,-894.17,0.00019178,2]
[338435750,1726637441824,-500.0,0.00019178,2]
[338435751,1726637441833,-500.0,0.00019178,2]
[338435752,1726637441845,-500.0,0.00019178,2]
[338435753,1726637441857,-500.0,0.00019178,2]
[338435754,1726637441867,-900.08,0.00019178,2]
[338435755,1726637441878,-538.67894368,0.00019178,2]
[338435756,1726637441890,-1333.34,0.00019178,2]
[338435757,1726637441901,-500.37505608,0.00019178,2]
[338435758,1726637441911,-500.0,0.00019178,2]
[338435759,1726637441922,-581.23,0.00019178,2]
[338435760,1726637441933,-500.0,0.00019178,2]
[338435761,1726637441943,-581.1,0.00019178,2]
[338435762,1726637441953,-500.0,0.00019178,2]
[338435763,1726637441962,-500.0,0.00019178,2]
[338435764,1726637441972,-506.91216179,0.00019178,2]
[338435765,1726637441983,-500.0,0.00019178,2]
[338435766,1726637441993,-995.44,0.00019178,2]
[338435767,1726637442003,-500.0,0.00019178,2]
[338435768,1726637442015,-1711.21,0.00019178,2]
[338435769,1726637442027,-500.0,0.00019178,2]
[338435770,1726637442037,-501.0258903,0.00019178,2]
[338435771,1726637442047,-3721.54,0.00019178,2]
[338435772,1726637442059,-182.84712699,0.00019178,2]
[338435773,1726637442069,-500.0,0.00019178,2]
[338435774,1726637442079,-532.31977263,0.00019178,2]
[338435775,1726637442089,-530.2,0.00019178,2]
[338435776,1726637442099,-453.65675514,0.00019178,2]
[338435777,1726637442109,-1443.28,0.00019178,2]
[338435778,1726637442119,-511.0,0.00019178,2]
[338435779,1726637442131,-1647.55,0.00019178,2]
[338435780,1726637442141,-500.0,0.00019178,2]
[338435781,1726637442152,-3063.96,0.00019178,2]
[338435782,1726637442161,-309.0,0.00019178,2]
[338435783,1726637442171,-500.0,0.00019178,2]
[338435784,1726637442181,-1202.17,0.00019178,2]
[338435785,1726637442190,-500.0,0.00019178,2]
[338435786,1726637442200,-627.05274603,0.00019178,2]
[338435788,1726637442210,-500.0,0.00019178,2]
[338435789,1726637442219,-500.0,0.00019178,2]
[338435790,1726637442231,-500.0,0.00019178,2]
[338435791,1726637442242,-500.0,0.00019178,2]
[338435792,1726637442254,-500.0,0.00019178,2]
[338435793,1726637442264,-500.0,0.00019178,2]
[338435794,1726637442275,-500.0,0.00019178,2]
[338435795,1726637442286,-247.6,0.00019178,2]
[338435796,1726637442296,-500.0,0.00019178,2]
[338435797,1726637442307,-500.0,0.00019178,2]
[338435798,1726637442318,-500.0,0.00019178,2]
[338435799,1726637442329,-500.0,0.00019178,2]
[338435800,1726637442339,-500.0,0.00019178,2]
[338435801,1726637442349,-500.0,0.00019178,2]
[338435802,1726637442359,-500.0,0.00019178,2]
[338435803,1726637442371,-500.0,0.00019178,2]
[338435804,1726637442381,-500.0,0.00019178,2]
[338435805,1726637442393,-500.0,0.00019178,2]
[338435806,1726637442402,-500.0,0.00019178,2]
[338435807,1726637442413,-500.0,0.00019178,2]
[338435808,1726637442424,-1944.09,0.00019178,2]
[338435809,1726637442435,-1466.0,0.00019178,2]
[338435810,1726637442445,-1443.77,0.00019178,2]
[338435811,1726637442611,-500.0,0.00019178,2]
[338435812,1726637442622,-202.51131607,0.00019178,2]
[338435813,1726637442633,-500.0,0.00019178,2]
[338435814,1726637442646,-500.0,0.00019178,2]
[338435815,1726637442657,-500.0,0.00019178,2]
[338435816,1726637442669,-825.1,0.00019178,2]
[338435817,1726637442679,-1049.69,0.00019178,2]
[338435818,1726637442689,-2259.01,0.00019178,2]
[338435819,1726637442699,-500.0,0.00019178,2]
[338435820,1726637442709,-3991.9,0.00019178,2]
[338435821,1726637442719,-796.92,0.00019178,2]
[338435822,1726637442729,-500.0,0.00019178,2]
[338435823,1726637442739,-500.0,0.00019178,2]
[338435824,1726637442751,-500.0,0.00019178,2]
[338435825,1726637442762,-2227.01,0.00019178,2]
[338435826,1726637442777,-500.0,0.00019178,2]
[338435827,1726637442787,-1048.48,0.00019178,2]
[338435828,1726637442797,-500.0,0.00019178,2]
[338435829,1726637442808,-670.11,0.00019178,2]
[338435830,1726637442820,-500.0,0.00019178,2]
[338435831,1726637442831,-500.0,0.00019178,2]
[338435832,1726637442841,-450.43159163,0.00019178,2]
[338435833,1726637442852,-500.0,0.00019178,2]
[338435834,1726637442863,-500.0,0.00019178,2]
[338435835,1726637442874,-500.0,0.00019178,2]
[338435836,1726637442884,-939.24,0.00019178,2]
[338435837,1726637442894,-795.65,0.00019178,2]
[338435838,1726637442905,-500.0,0.00019178,2]
[338435839,1726637442916,-500.0,0.00019178,2]
[338435840,1726637442927,-502.63285672,0.00019178,2]
[338435841,1726637442937,-500.0,0.00019178,2]
[338435842,1726637442947,-500.0,0.00019178,2]
[338435843,1726637442957,-500.0,0.00019178,2]
[338435844,1726637442967,-500.0,0.00019178,2]
[338435845,1726637442978,-3280.11,0.00019178,2]
[338435846,1726637442987,-998.57,0.00019178,2]
[338435847,1726637442998,-932.13,0.00019178,2]
[338435848,1726637443010,-500.0,0.00019178,2]
[338435849,1726637443019,-1793.86,0.00019178,2]
[338435850,1726637443028,-500.0,0.00019178,2]
[338435851,1726637443039,-500.0,0.00019178,2]
[338435852,1726637443049,-500.0,0.00019178,2]
[338435853,1726637443061,-500.0,0.00019178,2]
[338435854,1726637443072,-500.0,0.00019178,2]
[338435855,1726637443082,-1010.21,0.00019178,2]
[338435856,1726637443092,-500.0,0.00019178,2]
[338435857,1726637443103,-538.05000947,0.00019178,2]
[338435858,1726637443116,-1383.65,0.00019178,2]
[338435859,1726637443127,-2381.06,0.00019178,2]
[338435860,1726637443137,-500.0,0.00019178,2]
[338435861,1726637443147,-679.58,0.00019178,2]
[338435862,1726637443156,-500.0,0.00019178,2]
[338435863,1726637443167,-500.0,0.00019178,2]
[338435864,1726637443177,-500.0,0.00019178,2]
[338435865,1726637443188,-808.05,0.00019178,2]
[338435866,1726637443199,-1236.45,0.00019178,2]
[338435867,1726637443210,-500.0,0.00019178,2]
[338435868,1726637443222,-500.0,0.00019178,2]
[338435869,1726637443233,-4131.18,0.00019178,2]
[338435870,1726637443244,-500.0,0.00019178,2]
[338435871,1726637443255,-500.0,0.00019178,2]
[338435872,1726637443265,-500.0,0.00019178,2]
[338435873,1726637443275,-502.42661494,0.00019178,2]
[338435874,1726637443287,-2706.18,0.00019178,2]
[338435875,1726637443298,-842.22,0.00019178,2]
[338435876,1726637443309,-779.26,0.00019178,2]
[338435877,1726637443320,-500.0,0.00019178,2]
[338435878,1726637443333,-1223.12,0.00019178,2]
[338435879,1726637443343,-1138.6,0.00019178,2]
[338435880,1726637443353,-500.0,0.00019178,2]
[338435881,1726637443362,-500.0,0.00019178,2]
[338435882,1726637443371,-546.2,0.00019178,2]
[338435883,1726637443381,-500.0,0.00019178,2]
[338435884,1726637443391,-500.0,0.00019178,2]
[338435885,1726637443400,-500.0,0.00019178,2]
[338435886,1726637443410,-619.87,0.00019178,2]
[338435887,1726637443420,-500.0,0.00019178,2]
[338435888,1726637443429,-866.6,0.00019178,2]
[338435889,1726637443439,-500.0,0.00019178,2]
[338435890,1726637443448,-2060.58371211,0.00019178,2]
[338435891,1726637443948,-535.81628789,0.00019178,2]
[338435892,1726637443958,-1555.32,0.00019178,2]
[338435893,1726637443970,-1326.9,0.00019178,2]
[338435894,1726637443980,-562.21,0.00019178,2]
[338435895,1726637443991,-836.53,0.00019178,2]
[338435896,1726637444006,-500.0,0.00019178,2]
[338435897,1726637444017,-500.0,0.00019178,2]
[338435898,1726637444028,-500.0,0.00019178,2]
[338435899,1726637444040,-1881.49,0.00019178,2]
[338435900,1726637444052,-500.0,0.00019178,2]
[338435901,1726637444063,-500.0,0.00019178,2]
[338435902,1726637444074,-1707.52,0.00019178,2]
[338435903,1726637444084,-1707.52,0.00019178,2]
[338435904,1726637444095,-522.11,0.00019178,2]
[338435905,1726637444104,-2713.95,0.00019178,2]
[338435906,1726637444114,-1707.52,0.00019178,2]
[338435907,1726637444125,-1707.52,0.00019178,2]
[338435908,1726637444134,-1707.52,0.00019178,2]
[338435909,1726637444144,-500.0,0.00019178,2]
[338435910,1726637444154,-1707.52,0.00019178,2]
[338435911,1726637444165,-1707.52,0.00019178,2]
[338435912,1726637444175,-1707.52,0.00019178,2]
[338435913,1726637444186,-500.0,0.00019178,2]
[338435914,1726637444195,-1707.52,0.00019178,2]
[338435915,1726637444206,-1707.52,0.00019178,2]
[338435916,1726637444217,-1707.52,0.00019178,2]
[338435917,1726637444228,-1707.52,0.00019178,2]
[338435918,1726637444238,-1707.52,0.00019178,2]
[338435919,1726637444249,-1707.52,0.00019178,2]
[338435920,1726637444259,-1707.52,0.00019178,2]
[338435921,1726637444271,-648.06289456,0.00019178,2]
[338435922,1726637444282,-1707.52,0.00019178,2]
[338435923,1726637444293,-1707.52,0.00019178,2]
[338435924,1726637444304,-1707.52,0.00019178,2]
[338435925,1726637444314,-1707.52,0.00019178,2]
[338435926,1726637444324,-601.36,0.00019178,2]
[338435927,1726637444333,-1707.52,0.00019178,2]
[338435928,1726637444343,-1707.52,0.00019178,2]
[338435929,1726637444353,-561.1,0.00019178,2]
[338435930,1726637444362,-1707.52,0.00019178,2]
[338435931,1726637444371,-714.57,0.00019178,2]
[338435932,1726637444381,-1707.52,0.00019178,2]
[338435933,1726637444391,-1707.73420821,0.00019178,2]
[338435934,1726637444400,-1000.85,0.00019178,2]
[338435935,1726637444409,-755.53,0.00019178,2]
[338435936,1726637444418,-500.0,0.00019178,2]
[338435937,1726637444427,-500.0,0.00019178,2]
[338435938,1726637444437,-500.0,0.00019178,2]
[338435939,1726637444447,-500.0,0.00019178,2]
[338435940,1726637444456,-500.0,0.00019178,2]
[338435941,1726637444465,-1955.05,0.00019178,2]
[338435942,1726637444475,-500.0,0.00019178,2]
[338435943,1726637444485,-1089.62,0.00019178,2]
[338435944,1726637444495,-391.84930936,0.00019178,2]
[338435945,1726637444504,-823.49,0.00019178,2]
[338435946,1726637444514,-862.72,0.00019178,2]
[338435947,1726637444523,-500.0,0.00019178,2]
[338435948,1726637444533,-664.22,0.00019178,2]
[338435949,1726637444542,-500.0,0.00019178,2]
[338435950,1726637444551,-851.34,0.00019178,2]
[338435951,1726637444561,-500.0,0.00019178,2]
[338435952,1726637444570,-500.0,0.00019178,2]
[338435953,1726637444579,-500.0,0.00019178,2]
[338435954,1726637444589,-1534.35,0.00019178,2]
[338435955,1726637444599,-532.04378667,0.00019178,2]
[338435956,1726637444610,-500.0,0.00019178,2]
[338435957,1726637444620,-500.0,0.00019178,2]
[338435958,1726637444629,-250.0,0.00019178,2]
[338435959,1726637444639,-500.0,0.00019178,2]
[338435960,1726637444650,-500.0,0.00019178,2]
[338435961,1726637444661,-623.08793146,0.00019178,2]
[338435962,1726637444671,-219.85106024,0.00019178,2]
[338435963,1726637444681,-1776.55,0.00019178,2]
[338435964,1726637444693,-500.0,0.00019178,2]
[338435965,1726637444702,-500.0,0.00019178,2]
[338435966,1726637444712,-500.0,0.00019178,2]
[338435967,1726637444722,-500.0,0.00019178,2]
[338435968,1726637444733,-851.54,0.00019178,2]
[338435969,1726637444743,-500.0,0.00019178,2]
[338435970,1726637444755,-500.0,0.00019178,2]
[338435971,1726637444765,-1802.31,0.00019178,2]
[338435972,1726637444775,-572.91,0.00019178,2]
[338435973,1726637444785,-500.0,0.00019178,2]
[338435974,1726637444796,-1213.89,0.00019178,2]
[338435975,1726637444808,-1213.89,0.00019178,2]
[338435976,1726637444819,-500.0,0.00019178,2]
[338435977,1726637444829,-1213.89,0.00019178,2]
[338435978,1726637444840,-1213.89,0.00019178,2]
[338435979,1726637444851,-1213.89,0.00019178,2]
[338435980,1726637444862,-1213.89,0.00019178,2]
[338435981,1726637444872,-2845.51,0.00019178,2]
[338435982,1726637444882,-1213.89,0.00019178,2]
[338435983,1726637444891,-523.7,0.00019178,2]
[338435984,1726637444901,-1213.89,0.00019178,2]
[338435985,1726637444914,-1213.89,0.00019178,2]
[338435986,1726637444925,-1213.89,0.00019178,2]
[338435987,1726637444935,-1213.89,0.00019178,2]
[338435988,1726637444946,-1753.96,0.00019178,2]
[338435989,1726637444958,-1213.89,0.00019178,2]
[338435990,1726637444969,-1213.89,0.00019178,2]
[338435991,1726637444979,-1213.89,0.00019178,2]
[338435992,1726637444988,-1213.89,0.00019178,2]
[338435993,1726637444999,-1213.89,0.00019178,2]
[338435994,1726637445008,-500.0,0.00019178,2]
[338435995,1726637445019,-1213.89,0.00019178,2]
[338435996,1726637445029,-1213.89,0.00019178,2]
[338435997,1726637445039,-1213.89,0.00019178,2]
[338435998,1726637445049,-1091.36,0.00019178,2]
[338435999,1726637445059,-630.09,0.00019178,2]
[338436000,1726637445068,-1213.89,0.00019178,2]
[338436001,1726637445078,-1213.89,0.00019178,2]
[338436002,1726637445088,-1213.89,0.00019178,2]
[338436003,1726637445099,-842.38,0.00019178,2]
[338436004,1726637445109,-1213.89,0.00019178,2]
[338436005,1726637445119,-500.0,0.00019178,2]
[338436006,1726637445129,-1213.92239255,0.00019178,2]
[338436007,1726637445139,-500.0,0.00019178,2]
[338436008,1726637445149,-500.0,0.00019178,2]
[338436010,1726637445159,-500.0,0.00019178,2]
[338436012,1726637445168,-715.42,0.00019178,2]
[338436014,1726637445178,-500.0,0.00019178,2]
[338436016,1726637445187,-500.0,0.00019178,2]
[338436017,1726637445196,-500.0,0.00019178,2]
[338436020,1726637445206,-500.0,0.00019178,2]
[338436021,1726637445216,-500.0,0.00019178,2]
[338436024,1726637445226,-601.12331123,0.00019178,2]
[338436026,1726637445236,-1109.6,0.00019178,2]
[338436028,1726637445246,-500.0,0.00019178,2]
[338436030,1726637445256,-500.0,0.00019178,2]
[338436032,1726637445265,-500.0,0.00019178,2]
[338436034,1726637445275,-562.52,0.00019178,2]
[338436036,1726637445285,-759.28,0.00019178,2]
[338436038,1726637445295,-2140.85,0.00019178,2]
[338436040,1726637445305,-558.97,0.00019178,2]
[338436042,1726637445314,-2331.23,0.00019178,2]
[338436044,1726637445324,-1295.93,0.00019178,2]
[338436045,1726637445333,-500.0,0.00019178,2]
[338436046,1726637445343,-500.0,0.00019178,2]
[338436047,1726637445352,-500.0,0.00019178,2]
[338436048,1726637445362,-500.0,0.00019178,2]
[338436049,1726637445371,-500.0,0.00019178,2]
[338436050,1726637445535,-500.0,0.00019178,2]
[338436051,1726637445545,-500.0,0.00019178,2]
[338436052,1726637445557,-500.0,0.00019178,2]
[338436053,1726637445567,-1017.71,0.00019178,2]
[338436054,1726637445576,-758.31,0.00019178,2]
[338436055,1726637445585,-634.8,0.00019178,2]
[338436056,1726637445595,-500.0,0.00019178,2]
[338436057,1726637445605,-500.0,0.00019178,2]
[338436058,1726637445615,-500.0,0.00019178,2]
[338436059,1726637445624,-294.91661263,0.00019178,2]
[338436060,1726637445635,-500.0,0.00019178,2]
[338436061,1726637445646,-500.0,0.00019178,2]
[338436062,1726637445656,-500.0,0.00019178,2]
[338436063,1726637445667,-500.0,0.00019178,2]
[338436064,1726637445678,-500.0,0.00019178,2]
[338436065,1726637445689,-500.0,0.00019178,2]
[338436066,1726637445699,-500.0,0.00019178,2]
[338436067,1726637445711,-500.0,0.00019178,2]
[338436068,1726637445721,-580.09,0.00019178,2]
[338436069,1726637445731,-855.96,0.00019178,2]
[338436070,1726637445743,-1258.93,0.00019178,2]
[338436071,1726637445752,-1937.67,0.00019178,2]
[338436072,1726637445762,-500.0,0.00019178,2]
[338436073,1726637445777,-500.0,0.00019178,2]
[338436074,1726637445787,-500.0,0.00019178,2]
[338436075,1726637445796,-1177.59,0.00019178,2]
[338436076,1726637445808,-500.0,0.00019178,2]
[338436077,1726637445820,-638.07343698,0.00019178,2]
[338436078,1726637445830,-2765.62,0.00019178,2]
[338436079,1726637445840,-500.0,0.00019178,2]
[338436080,1726637445851,-500.0,0.00019178,2]
[338436082,1726637445860,-500.0,0.00019178,2]
[338436083,1726637445870,-1057.98,0.00019178,2]
[338436084,1726637445879,-500.0,0.00019178,2]
[338436085,1726637445890,-667.04,0.00019178,2]
[338436086,1726637445899,-500.0,0.00019178,2]
[338436087,1726637445909,-500.0,0.00019178,2]
[338436088,1726637445919,-504.1266409,0.00019178,2]
[338436089,1726637445929,-500.0,0.00019178,2]
[338436090,1726637445938,-1040.71,0.00019178,2]
[338436091,1726637445948,-767.36,0.00019178,2]
[338436092,1726637445958,-673.86,0.00019178,2]
[338436093,1726637445968,-2203.27,0.00019178,2]
[338436094,1726637445977,-502.76714565,0.00019178,2]
[338436095,1726637445987,-1023.98,0.00019178,2]
[338436096,1726637445997,-500.0,0.00019178,2]
[338436097,1726637446006,-641.45,0.00019178,2]
[338436098,1726637446017,-500.0,0.00019178,2]
[338436099,1726637446027,-155.996601,0.00019178,2]
[338436100,1726637446037,-1468.78,0.00019178,2]
[338436101,1726637446048,-500.0,0.00019178,2]
[338436102,1726637446058,-1069.89,0.00019178,2]
[338436103,1726637446067,-154.795383,0.00019178,2]
[338436104,1726637446077,-500.0,0.00019178,2]
[338436105,1726637446087,-500.0,0.00019178,2]
[338436106,1726637446097,-501.16309341,0.00019178,2]
[338436107,1726637446107,-151.0,0.00019178,2]
[338436108,1726637446119,-151.0,0.00019178,2]
[338436109,1726637446129,-1781.13,0.00019178,2]
[338436110,1726637446138,-509.02148522,0.00019178,2]
[338436111,1726637446148,-386.7671336,0.00019178,2]
[338436112,1726637446157,-500.0,0.00019178,2]
[338436113,1726637446167,-500.0,0.00019178,2]
[338436114,1726637446177,-579.76,0.00019178,2]
[338436115,1726637446187,-151.0,0.00019178,2]
[338436116,1726637446196,-241.362484,0.00019178,2]
[338436117,1726637446206,-500.0,0.00019178,2]
[338436118,1726637446216,-500.0,0.00019178,2]
[338436119,1726637446225,-218.33523406,0.00019178,2]
[338436120,1726637446235,-646.59,0.00019178,2]
[338436121,1726637446245,-672.94,0.00019178,2]
[338436122,1726637446255,-500.0,0.00019178,2]
[338436123,1726637446266,-500.0,0.00019178,2]
[338436124,1726637446277,-500.0,0.00019178,2]
[338436125,1726637446287,-1410.71,0.00019178,2]
[338436126,1726637446297,-500.0,0.00019178,2]
[338436127,1726637446307,-861.12,0.00019178,2]
[338436128,1726637446316,-500.0,0.00019178,2]
[338436129,1726637446326,-589.93,0.00019178,2]
[338436130,1726637446335,-500.0,0.00019178,2]
[338436131,1726637446345,-500.0,0.00019178,2]
[338436132,1726637446355,-2217.64,0.00019178,2]
[338436133,1726637446365,-508.16464804,0.00019178,2]
[338436134,1726637446375,-1276.55,0.00019178,2]
[338436135,1726637446384,-500.0,0.00019178,2]
[338436136,1726637446393,-689.54,0.00019178,2]
[338436137,1726637446402,-267.80655226,0.00019178,2]
[338436138,1726637446411,-830.72,0.00019178,2]
[338436139,1726637446420,-500.0,0.00019178,2]
[338436140,1726637446430,-500.0,0.00019178,2]
[338436141,1726637446439,-500.0,0.00019178,2]
[338436142,1726637446450,-500.0,0.00019178,2]
[338436143,1726637446461,-500.0,0.00019178,2]
[338436144,1726637446471,-500.0,0.00019178,2]